fUSD/lending_fUSD_20240620
["ID","MTS","AMOUNT","RATE_DAILY","PERIOD"]
[329938256,1718848249257,-502.08569964,0.00013698,2]
[329938257,1718848249267,-528.8,0.00013698,2]
[329938258,1718848249277,-2052.19,0.00013698,2]
[329938259,1718848249288,-507.90579831,0.00013698,2]
[329938260,1718848249298,-506.07206229,0.00013698,2]
[329938261,1718848249307,-3151.94,0.00013698,2]
[329938262,1718848249317,-503.88423414,0.00013698,2]
[329938263,1718848249326,-500.0,0.00013698,2]
[329938264,1718848249336,-507.46573801,0.00013698,2]
[329938265,1718848249345,-501.30301403,0.00013698,2]
[329938266,1718848249355,-500.0,0.00013698,2]
[329938267,1718848249364,-502.96349719,0.00013698,2]
[329938268,1718848249374,-500.0,0.00013698,2]
[329938269,1718848249384,-43959.83,0.00013698,2]
[329938270,1718848249393,-500.0,0.00013698,2]
[329938271,1718848249403,-503.00260788,0.00013698,2]
[329938272,1718848249414,-537.31907087,0.00013698,2]
[329938273,1718848249424,-1424.81,0.00013698,2]
[329938274,1718848249433,-621.24445326,0.00013698,2]
[329938275,1718848249444,-903.64,0.00013698,2]
[329938276,1718848249454,-506.16012595,0.00013698,2]
[329938277,1718848249466,-674.66,0.00013698,2]
[329938278,1718848249480,-501.06679282,0.00013698,2]
[329938279,1718848249490,-511.99183526,0.00013698,2]
[329938280,1718848249500,-501.98322564,0.00013698,2]
[329938281,1718848249512,-505.98120673,0.00013698,2]
[329938282,1718848249523,-794.14,0.00013698,2]
[329938283,1718848249533,-502.95079246,0.00013698,2]
[329938284,1718848249546,-508.0916167,0.00013698,2]
[329938285,1718848249556,-507.65173272,0.00013698,2]
[329938286,1718848249566,-500.46818512,0.00013698,2]
[329938287,1718848249579,-503.60711023,0.00013698,2]
[329938288,1718848249588,-530.26469217,0.00013698,2]
[329938289,1718848249598,-502.70933334,0.00013698,2]
[329938290,1718848249607,-500.0,0.00013698,2]
[329938291,1718848249617,-501.32415461,0.00013698,2]
[329938292,1718848249626,-350.08202566,0.00013698,2]
[329938293,1718848249635,-500.7430205,0.00013698,2]
[329938294,1718848249644,-500.0,0.00013698,2]
[329938295,1718848249654,-2014.86,0.00013698,2]
[329938296,1718848249664,-2255.17,0.00013698,2]
[329938297,1718848249674,-2801.07,0.00013698,2]
[329938298,1718848249683,-508.07126609,0.00013698,2]
[329938299,1718848249693,-1178.01,0.00013698,2]
[329938300,1718848249704,-500.0,0.00013698,2]
[329938301,1718848249713,-507.99919671,0.00013698,2]
[329938302,1718848249722,-503.03048039,0.00013698,2]
[329938303,1718848249731,-501.78402629,0.00013698,2]
[329938304,1718848249742,-504.49757385,0.00013698,2]
[329938305,1718848249751,-679.67,0.00013698,2]
[329938306,1718848249761,-502.11479658,0.00013698,2]
[329938307,1718848249772,-1030.01,0.00013698,2]
[329938308,1718848249782,-500.71684152,0.00013698,2]
[329938309,1718848249793,-1257.6,0.00013698,2]
[329938310,1718848249804,-501.83882478,0.00013698,2]
[329938311,1718848249813,-504.71195905,0.00013698,2]
[329938312,1718848249823,-4955.7,0.00013698,2]
[329938313,1718848249832,-504.270451,0.00013698,2]
[329938314,1718848249842,-1718.58,0.00013698,2]
[329938315,1718848249851,-5016.03173886,0.00013698,2]
[329938316,1718848249861,-504.0268899,0.00013698,2]
[329938317,1718848249870,-500.74747484,0.00013698,2]
[329938318,1718848249880,-500.0,0.00013698,2]
[329938319,1718848249890,-199.93243988,0.00013698,2]
[329938320,1718848249899,-502.36200561,0.00013698,2]
[329938321,1718848249909,-500.0,0.00013698,2]
[329938322,1718848249919,-501.79007753,0.00013698,2]
[329938323,1718848249928,-502.59347486,0.00013698,2]
[329938324,1718848249938,-1173.22,0.00013698,2]
[329938325,1718848249947,-3789.0,0.00013698,2]
[329938326,1718848249957,-500.0,0.00013698,2]
[329938327,1718848249967,-500.0,0.00013698,2]
[329938328,1718848249976,-504.8093073,0.00013698,2]
[329938329,1718848249986,-502.14279228,0.00013698,2]
[329938330,1718848249995,-510.22034432,0.00013698,2]
[329938331,1718848250004,-500.0,0.00013698,2]
[329938332,1718848250014,-506.84279489,0.00013698,2]
[329938333,1718848250023,-883.38,0.00013698,2]
[329938334,1718848250033,-501.64818585,0.00013698,2]
[329938335,1718848250044,-665.4,0.00013698,2]
[329938336,1718848250054,-505.40112858,0.00013698,2]
[329938337,1718848250063,-2775.63,0.00013698,2]
[329938338,1718848250072,-1470.68,0.00013698,2]
[329938339,1718848250082,-502.38769231,0.00013698,2]
[329938340,1718848250091,-500.0,0.00013698,2]
[329938341,1718848250101,-503.72852038,0.00013698,2]
[329938342,1718848250110,-506.43005573,0.00013698,2]
[329938343,1718848250119,-510.01887371,0.00013698,2]
[329938344,1718848250128,-501.47074434,0.00013698,2]
[329938345,1718848250138,-503.10896228,0.00013698,2]
[329938346,1718848250147,-502.60157133,0.00013698,2]
[329938347,1718848250156,-504.26150813,0.00013698,2]
[329938348,1718848250166,-509.6200564,0.00013698,2]
[329938349,1718848250175,-502.14121644,0.00013698,2]
[329938350,1718848250184,-505.70291617,0.00013698,2]
[329938351,1718848250193,-2097.38,0.00013698,2]
[329938352,1718848250202,-1132.73,0.00013698,2]
[329938353,1718848250211,-502.20976379,0.00013698,2]
[329938354,1718848250220,-505.44087105,0.00013698,2]
[329938355,1718848250230,-507.6187056,0.00013698,2]
[329938356,1718848250238,-500.58699393,0.00013698,2]
[329938357,1718848250247,-510.829271,0.00013698,2]
[329938358,1718848250256,-501.81060636,0.00013698,2]
[329938359,1718848250265,-505.32,0.00013698,2]
[329938360,1718848250274,-503.43247917,0.00013698,2]
[329938361,1718848250283,-993.76,0.00013698,2]
[329938362,1718848250294,-570.02,0.00013698,2]
[329938363,1718848250303,-505.35541796,0.00013698,2]
[329938364,1718848250311,-502.15471446,0.00013698,2]
[329938365,1718848250321,-504.49634542,0.00013698,2]
[329938366,1718848250330,-500.0,0.00013698,2]
[329938367,1718848250339,-503.013018,0.00013698,2]
[329938368,1718848250348,-623.14,0.00013698,2]
[329938369,1718848250358,-501.7543018,0.00013698,2]
[329938370,1718848250367,-500.0,0.00013698,2]
[329938371,1718848250376,-2588.09,0.00013698,2]
[329938372,1718848250385,-500.0,0.00013698,2]
[329938373,1718848250394,-500.0,0.00013698,2]
[329938374,1718848250403,-500.0,0.00013698,2]
[329938375,1718848250414,-500.0,0.00013698,2]
[329938376,1718848250424,-500.0,0.00013698,2]
[329938377,1718848250433,-503.54277737,0.00013698,2]
[329938378,1718848250443,-504.35993562,0.00013698,2]
[329938379,1718848250452,-505.47196573,0.00013698,2]
[329938380,1718848250462,-500.0,0.00013698,2]
[329938381,1718848250472,-500.0,0.00013698,2]
[329938382,1718848250485,-3063.3,0.00013698,2]
[329938383,1718848250495,-1594.26,0.00013698,2]
[329938384,1718848250504,-508.54918015,0.00013698,2]
[329938385,1718848250515,-502.89589899,0.00013698,2]
[329938386,1718848250524,-510.97321866,0.00013698,2]
[329938387,1718848250533,-500.72771572,0.00013698,2]
[329938388,1718848250547,-501.7214998,0.00013698,2]
[329938389,1718848250559,-1119.29,0.00013698,2]
[329938390,1718848250567,-506.88585956,0.00013698,2]
[329938391,1718848250576,-540.35,0.00013698,2]
[329938392,1718848250585,-500.0,0.00013698,2]
[329938393,1718848250594,-3247.57,0.00013698,2]
[329938394,1718848250604,-1243.21,0.00013698,2]
[329938395,1718848250614,-501.1892798,0.00013698,2]
[329938396,1718848250623,-503.12995663,0.00013698,2]
[329938397,1718848250632,-510.47348234,0.00013698,2]
[329938398,1718848250641,-501.69350735,0.00013698,2]
[329938399,1718848250650,-612.14,0.00013698,2]
[329938400,1718848250660,-503.30613782,0.00013698,2]
[329938401,1718848250671,-505.13279775,0.00013698,2]
[329938402,1718848250681,-503.71908177,0.00013698,2]
[329938403,1718848250691,-2831.68,0.00013698,2]
[329938404,1718848250700,-500.0,0.00013698,2]
[329938405,1718848250710,-501.5910193,0.00013698,2]
[329938406,1718848250720,-2172.92,0.00013698,2]
[329938407,1718848250729,-502.71953415,0.00013698,2]
[329938408,1718848250739,-510.53696169,0.00013698,2]
[329938409,1718848250749,-500.0,0.00013698,2]
[329938410,1718848250759,-507.94250723,0.00013698,2]
[329938411,1718848250768,-504.21629443,0.00013698,2]
[329938412,1718848250778,-502.24366409,0.00013698,2]
[329938413,1718848250788,-566.70506162,0.00013698,2]
[329938414,1718848250798,-503.90317571,0.00013698,2]
[329938415,1718848250807,-1104.26,0.00013698,2]
[329938416,1718848250816,-588.09,0.00013698,2]
[329938417,1718848250825,-500.0,0.00013698,2]
[329938418,1718848250835,-772.35,0.00013698,2]
[329938419,1718848250844,-509.16180122,0.00013698,2]
[329938420,1718848250854,-12106.91,0.00013698,2]
[329938421,1718848250865,-502.18764682,0.00013698,2]
[329938422,1718848250874,-527.67,0.00013698,2]
[329938423,1718848250884,-502.95627204,0.00013698,2]
[329938424,1718848250895,-1095.03,0.00013698,2]
[329938425,1718848250904,-506.94603455,0.00013698,2]
[329938426,1718848250914,-236.85673737,0.00013698,2]
[329938427,1718848250923,-500.18673758,0.00013698,2]
[329938428,1718848250934,-852.74,0.00013698,2]
[329938429,1718848250945,-502.2746027,0.00013698,2]
[329938430,1718848250956,-518.56329214,0.00013698,2]
[329938431,1718848250965,-500.28030211,0.00013698,2]
[329938432,1718848250977,-753.32,0.00013698,2]
[329938433,1718848250986,-507.63812668,0.00013698,2]
[329938434,1718848250996,-1579.4,0.00013698,2]
[329938435,1718848251005,-500.44626565,0.00013698,2]
[329938436,1718848251014,-506.29200089,0.00013698,2]
[329938437,1718848251026,-11908.69,0.00013698,2]
[329938438,1718848251038,-511.33170714,0.00013698,2]
[329938439,1718848251048,-581.7,0.00013698,2]
[329938440,1718848251059,-500.91473247,0.00013698,2]
[329938441,1718848251068,-502.2431958,0.00013698,2]
[329938442,1718848251296,-3135.77,0.00013698,2]
[329938443,1718848251305,-499.80882639,0.00013698,2]
[329938444,1718848251315,-500.0,0.00013698,2]
[329938445,1718848251324,-2491.37,0.00013698,2]
[329938446,1718848251334,-507.58445363,0.00013698,2]
[329938447,1718848251343,-1624.59,0.00013698,2]
[329938448,1718848251353,-504.04118227,0.00013698,2]
[329938449,1718848251362,-504.90910606,0.00013698,2]
[329938450,1718848251372,-276.27875738,0.00013698,2]
[329938451,1718848251381,-509.78263111,0.00013698,2]
[329938452,1718848251390,-511.27,0.00013698,2]
[329938453,1718848251400,-506.61145407,0.00013698,2]
[329938454,1718848251409,-500.39030622,0.00013698,2]
[329938455,1718848251418,-651.95,0.00013698,2]
[329938456,1718848251427,-4309.28,0.00013698,2]
[329938457,1718848251436,-503.12966083,0.00013698,2]
[329938458,1718848251446,-500.0,0.00013698,2]
[329938459,1718848251455,-1192.6,0.00013698,2]
[329938460,1718848251467,-500.6305872,0.00013698,2]
[329938461,1718848251477,-501.56496785,0.00013698,2]
[329938462,1718848251486,-506.21636168,0.00013698,2]
[329938463,1718848251495,-500.0,0.00013698,2]
[329938464,1718848251504,-1767.39,0.00013698,2]
[329938465,1718848251515,-501.78123701,0.00013698,2]
[329938466,1718848251524,-3233.09,0.00013698,2]
[329938467,1718848251533,-6788.47,0.00013698,2]
[329938468,1718848251546,-501.7148556,0.00013698,2]
[329938469,1718848251556,-510.7974366,0.00013698,2]
[329938470,1718848251566,-558.56,0.00013698,2]
[329938471,1718848251575,-503.06637181,0.00013698,2]
[329938472,1718848251584,-501.3964617,0.00013698,2]
[329938473,1718848251593,-500.0,0.00013698,2]
[329938474,1718848251603,-503.96918526,0.00013698,2]
[329938475,1718848251612,-503.4419967,0.00013698,2]
[329938476,1718848251621,-944.18,0.00013698,2]
[329938477,1718848251631,-500.69370832,0.00013698,2]
[329938478,1718848251640,-678.82,0.00013698,2]
[329938479,1718848251650,-503.19288418,0.00013698,2]
[329938480,1718848251659,-16351.51,0.00013698,2]
[329938481,1718848251669,-500.0,0.00013698,2]
[329938482,1718848251678,-1014.1,0.00013698,2]
[329938483,1718848251687,-823.45,0.00013698,2]
[329938484,1718848251697,-501.00475238,0.00013698,2]
[329938485,1718848251706,-19959.79,0.00013698,2]
[329938486,1718848251717,-2941.58,0.00013698,2]
[329938487,1718848251728,-508.76647234,0.00013698,2]
[329938488,1718848251738,-501.57970704,0.00013698,2]
[329938489,1718848251748,-503.74423593,0.00013698,2]
[329938490,1718848251757,-503.38788905,0.00013698,2]
[329938491,1718848251767,-509.75091327,0.00013698,2]
[329938492,1718848251778,-510.42924725,0.00013698,2]
[329938493,1718848251791,-823.06,0.00013698,2]
[329938494,1718848251800,-308.01464019,0.00013698,2]
[329938495,1718848251810,-1423.18,0.00013698,2]
[329938496,1718848251819,-785.22,0.00013698,2]
[329938497,1718848251829,-504.57319874,0.00013698,2]
[329938498,1718848251840,-3370.25,0.00013698,2]
[329938499,1718848251850,-505.448158,0.00013698,2]
[329938500,1718848251859,-512.13717283,0.00013698,2]
[329938501,1718848251869,-502.36071114,0.00013698,2]
[329938502,1718848251879,-500.0,0.00013698,2]
[329938503,1718848251889,-500.0,0.00013698,2]
[329938504,1718848251899,-502.43402998,0.00013698,2]
[329938505,1718848251908,-2675.02,0.00013698,2]
[329938506,1718848251918,-500.0,0.00013698,2]
[329938507,1718848251927,-506.23203933,0.00013698,2]
[329938508,1718848251937,-828.49,0.00013698,2]
[329938509,1718848251946,-500.0,0.00013698,2]
[329938510,1718848251955,-1472.64,0.00013698,2]
[329938511,1718848251964,-500.0,0.00013698,2]
[329938512,1718848251974,-500.0,0.00013698,2]
[329938513,1718848251984,-507.91073005,0.00013698,2]
[329938514,1718848251994,-508.4466054,0.00013698,2]
[329938515,1718848252004,-2493.61,0.00013698,2]
[329938516,1718848252013,-1098.69,0.00013698,2]
[329938517,1718848252022,-505.27760431,0.00013698,2]
[329938518,1718848252031,-500.0,0.00013698,2]
[329938519,1718848252043,-501.29821262,0.00013698,2]
[329938520,1718848252053,-5216.96,0.00013698,2]
[329938521,1718848252062,-502.15175,0.00013698,2]
[329938522,1718848252072,-501.96594369,0.00013698,2]
[329938523,1718848252081,-500.0,0.00013698,2]
[329938524,1718848252090,-501.47469366,0.00013698,2]
[329938525,1718848252100,-5174.5,0.00013698,2]
[329938526,1718848252110,-508.61284572,0.00013698,2]
[329938527,1718848252120,-500.0,0.00013698,2]
[329938528,1718848252129,-507.43859809,0.00013698,2]
[329938529,1718848252139,-599.41,0.00013698,2]
[329938530,1718848252150,-500.0,0.00013698,2]
[329938531,1718848252159,-503.88541141,0.00013698,2]
[329938532,1718848252171,-508.08437471,0.00013698,2]
[329938533,1718848252182,-500.0,0.00013698,2]
[329938534,1718848252191,-503.617797,0.00013698,2]
[329938535,1718848252202,-4827.6,0.00013698,2]
[329938536,1718848252213,-1525.04,0.00013698,2]
[329938537,1718848252223,-502.56960304,0.00013698,2]
[329938538,1718848252233,-510.84561079,0.00013698,2]
[329938539,1718848252243,-500.0,0.00013698,2]
[329938540,1718848252253,-500.0,0.00013698,2]
[329938541,1718848252266,-500.0,0.00013698,2]
[329938542,1718848252275,-500.0,0.00013698,2]
[329938543,1718848252286,-503.76425198,0.00013698,2]
[329938544,1718848252296,-500.0,0.00013698,2]
[329938545,1718848252305,-502.62599684,0.00013698,2]
[329938546,1718848252314,-1207.88,0.00013698,2]
[329938547,1718848252325,-505.22704757,0.00013698,2]
[329938548,1718848252334,-503.93755131,0.00013698,2]
[329938549,1718848252344,-1263.63,0.00013698,2]
[329938550,1718848252354,-500.0,0.00013698,2]
[329938551,1718848252365,-7501.7,0.00013698,2]
[329938552,1718848252376,-7196.73,0.00013698,2]
[329938553,1718848252387,-871.05,0.00013698,2]
[329938554,1718848252396,-503.11904369,0.00013698,2]
[329938555,1718848252406,-501.41610298,0.00013698,2]
[329938556,1718848252417,-4260.69,0.00013698,2]
[329938557,1718848252428,-506.13885662,0.00013698,2]
[329938558,1718848252438,-500.0,0.00013698,2]
[329938559,1718848252447,-848.78,0.00013698,2]
[329938560,1718848252458,-505.5653756,0.00013698,2]
[329938561,1718848252469,-505.02347792,0.00013698,2]
[329938562,1718848252483,-502.24492072,0.00013698,2]
[329938563,1718848252495,-504.50525342,0.00013698,2]
[329938564,1718848252506,-500.0,0.00013698,2]
[329938565,1718848252516,-511.22393897,0.00013698,2]
[329938566,1718848252526,-507.60185075,0.00013698,2]
[329938567,1718848252536,-2138.28,0.00013698,2]
[329938568,1718848252548,-502.47725584,0.00013698,2]
[329938569,1718848252559,-900.94,0.00013698,2]
[329938570,1718848252568,-500.0,0.00013698,2]
[329938571,1718848252577,-504.93287515,0.00013698,2]
[329938572,1718848252587,-504.81304874,0.00013698,2]
[329938573,1718848252597,-500.0,0.00013698,2]
[329938574,1718848252607,-3771.72,0.00013698,2]
[329938575,1718848252618,-13792.13,0.00013698,2]
[329938576,1718848252629,-503.95537817,0.00013698,2]
[329938577,1718848252638,-502.22439589,0.00013698,2]
[329938578,1718848252649,-500.0,0.00013698,2]
[329938579,1718848252659,-502.0196225,0.00013698,2]
[329938580,1718848252669,-500.0,0.00013698,2]
[329938581,1718848252679,-597.45,0.00013698,2]
[329938582,1718848252690,-7131.52,0.00013698,2]
[329938583,1718848252702,-501.45505132,0.00013698,2]
[329938584,1718848252712,-501.16643543,0.00013698,2]
[329938585,1718848252721,-504.42980623,0.00013698,2]
[329938586,1718848252730,-860.25204371,0.00013698,2]
[329938587,1718848252740,-506.49185968,0.00013698,2]
[329938588,1718848252750,-2968.09,0.00013698,2]
[329938589,1718848252761,-4532.44,0.00013698,2]
[329938590,1718848252771,-504.68286551,0.00013698,2]
[329938591,1718848252781,-933.17,0.00013698,2]
[329938592,1718848252792,-500.0,0.00013698,2]
[329938593,1718848252802,-510.38854521,0.00013698,2]
[329938594,1718848252811,-504.33017115,0.00013698,2]
[329938595,1718848252820,-961.88,0.00013698,2]
[329938596,1718848252832,-504.02567281,0.00013698,2]
[329938597,1718848252841,-9076.31,0.00013698,2]
[329938598,1718848252850,-501.60464006,0.00013698,2]
[329938599,1718848252860,-503.48187878,0.00013698,2]
[329938600,1718848252869,-1704.87,0.00013698,2]
[329938601,1718848252878,-503.28611259,0.00013698,2]
[329938602,1718848252887,-632.31,0.00013698,2]
[329938603,1718848252897,-500.68942487,0.00013698,2]
[329938604,1718848252907,-25529.38,0.00013698,2]
[329938605,1718848252916,-882.72,0.00013698,2]
[329938606,1718848252927,-500.0,0.00013698,2]
[329938607,1718848252938,-502.10897887,0.00013698,2]
[329938608,1718848252948,-2792.14,0.00013698,2]
[329938609,1718848252958,-525.84816098,0.00013698,2]
[329938610,1718848252967,-506.89795032,0.00013698,2]
[329938611,1718848252977,-500.0,0.00013698,2]
[329938612,1718848252987,-500.0,0.00013698,2]
[329938613,1718848252996,-505.75018859,0.00013698,2]
[329938614,1718848253006,-3895.83,0.00013698,2]
[329938615,1718848253016,-502.0756141,0.00013698,2]
[329938616,1718848253026,-505.62401235,0.00013698,2]
[329938617,1718848253036,-2159.36,0.00013698,2]
[329938618,1718848253047,-501.02205557,0.00013698,2]
[329938619,1718848253056,-505.18890423,0.00013698,2]
[329938620,1718848253066,-504.06593156,0.00013698,2]
[329938621,1718848253079,-511.16072736,0.00013698,2]
[329938622,1718848253090,-505.00695129,0.00013698,2]
[329938623,1718848253099,-503.77885905,0.00013698,2]
[329938624,1718848253110,-8379.52,0.00013698,2]
[329938625,1718848253120,-502.11789603,0.00013698,2]
[329938626,1718848253129,-500.0,0.00013698,2]
[329938627,1718848253139,-502.30646146,0.00013698,2]
[329938628,1718848253148,-500.0,0.00013698,2]
[329938629,1718848253157,-505.35109529,0.00013698,2]
[329938630,1718848253166,-1501.28,0.00013698,2]
[329938631,1718848253175,-4778.08,0.00013698,2]
[329938632,1718848253184,-1370.04,0.00013698,2]
[329938633,1718848253193,-505.45808816,0.00013698,2]
[329938634,1718848253202,-1143.61,0.00013698,2]
[329938635,1718848253211,-502.2910769,0.00013698,2]
[329938636,1718848253220,-506.73211866,0.00013698,2]
[329938637,1718848253230,-504.17459278,0.00013698,2]
[329938638,1718848253239,-500.0,0.00013698,2]
[329938639,1718848253248,-571.26,0.00013698,2]
[329938640,1718848253258,-500.96609505,0.00013698,2]
[329938641,1718848253269,-710.26,0.00013698,2]
[329938642,1718848253279,-4035.95,0.00013698,2]
[329938643,1718848253289,-1349.84,0.00013698,2]
[329938644,1718848253298,-507.52140799,0.00013698,2]
[329938645,1718848253308,-2311.84,0.00013698,2]
[329938646,1718848253317,-500.0,0.00013698,2]
[329938647,1718848253327,-517.98,0.00013698,2]
[329938648,1718848253338,-2612.49,0.00013698,2]
[329938649,1718848253348,-500.0,0.00013698,2]
[329938650,1718848253357,-510.80782222,0.00013698,2]
[329938651,1718848253367,-958.24,0.00013698,2]
[329938652,1718848253376,-522.1357711,0.00013698,2]
[329938653,1718848253386,-1939.46,0.00013698,2]
[329938654,1718848253395,-508.03409286,0.00013698,2]
[329938655,1718848253404,-500.0,0.00013698,2]
[329938656,1718848253414,-13433.93,0.00013698,2]
[329938657,1718848253424,-2174.3,0.00013698,2]
[329938658,1718848253433,-1297.36,0.00013698,2]
[329938659,1718848253445,-500.0,0.00013698,2]
[329938660,1718848253456,-504.63125581,0.00013698,2]
[329938661,1718848253472,-501.22477307,0.00013698,2]
[329938662,1718848253481,-3176.7,0.00013698,2]
[329938663,1718848253491,-519.60717095,0.00013698,2]
[329938664,1718848253502,-500.0,0.00013698,2]
[329938665,1718848253514,-1059.88,0.00013698,2]
[329938666,1718848253523,-501.72848016,0.00013698,2]
[329938667,1718848253532,-503.41270239,0.00013698,2]
[329938668,1718848253545,-730.21,0.00013698,2]
[329938669,1718848253556,-501.14946143,0.00013698,2]
[329938670,1718848253565,-4890.34,0.00013698,2]
[329938671,1718848253575,-502.4404346,0.00013698,2]
[329938672,1718848253585,-1854.72,0.00013698,2]
[329938673,1718848253598,-500.0,0.00013698,2]
[329938674,1718848253607,-503.34776967,0.00013698,2]
[329938675,1718848253618,-1022.12,0.00013698,2]
[329938676,1718848253630,-504.67345194,0.00013698,2]
[329938677,1718848253640,-500.0,0.00013698,2]
[329938678,1718848253652,-4320.2,0.00013698,2]
[329938679,1718848253663,-500.0,0.00013698,2]
[329938680,1718848253672,-500.20141523,0.00013698,2]
[329938681,1718848253682,-1337.07,0.00013698,2]
[329938682,1718848253773,-505.36675165,0.00013698,2]
[329938683,1718848253783,-504.16667322,0.00013698,2]
[329938684,1718848253794,-500.0,0.00013698,2]
[329938685,1718848253803,-502.28591613,0.00013698,2]
[329938686,1718848253812,-2824.15,0.00013698,2]
[329938687,1718848253822,-503.86162629,0.00013698,2]
[329938688,1718848253831,-4595.27,0.00013698,2]
[329938689,1718848253841,-500.0,0.00013698,2]
[329938690,1718848253850,-505.19995448,0.00013698,2]
[329938691,1718848253860,-2302.79,0.00013698,2]
[329938692,1718848253868,-936.74,0.00013698,2]
[329938693,1718848253877,-505.37211181,0.00013698,2]
[329938694,1718848253886,-500.0,0.00013698,2]
[329938695,1718848253896,-506.33555604,0.00013698,2]
[329938696,1718848253905,-508.26859499,0.00013698,2]
[329938697,1718848253914,-509.1814715,0.00013698,2]
[329938698,1718848253923,-2767.6,0.00013698,2]
[329938699,1718848253933,-500.0,0.00013698,2]
[329938700,1718848253942,-500.63124141,0.00013698,2]
[329938701,1718848253951,-504.07391487,0.00013698,2]
[329938702,1718848253960,-500.0,0.00013698,2]
[329938703,1718848253969,-10500.28,0.00013698,2]
[329938704,1718848253979,-500.0,0.00013698,2]
[329938705,1718848253988,-505.92797252,0.00013698,2]
[329938706,1718848253997,-479.04020708,0.00013698,2]
[329938707,1718848254006,-556.32,0.00013698,2]
[329938708,1718848254016,-3156.44,0.00013698,2]
[329938709,1718848254025,-2616.02,0.00013698,2]
[329938710,1718848254035,-501.19505016,0.00013698,2]
[329938711,1718848254045,-508.24502188,0.00013698,2]
[329938712,1718848254054,-501.11912205,0.00013698,2]
[329938713,1718848254064,-1098.09,0.00013698,2]
[329938714,1718848254073,-1848.51,0.00013698,2]
[329938715,1718848254082,-502.39084185,0.00013698,2]
[329938716,1718848254091,-502.19510535,0.00013698,2]
[329938717,1718848254100,-656.83,0.00013698,2]
[329938718,1718848254109,-1856.49,0.00013698,2]
[329938719,1718848254118,-731.24,0.00013698,2]
[329938720,1718848254127,-503.40563285,0.00013698,2]
[329938721,1718848254136,-504.78708059,0.00013698,2]
[329938722,1718848254145,-509.64956272,0.00013698,2]
[329938723,1718848254154,-505.4498264,0.00013698,2]
[329938724,1718848254164,-500.0,0.00013698,2]
[329938725,1718848254173,-505.33252431,0.00013698,2]
[329938726,1718848254182,-502.67969849,0.00013698,2]
[329938727,1718848254191,-2756.98,0.00013698,2]
[329938728,1718848254200,-6448.93,0.00013698,2]
[329938729,1718848254208,-3000.0,0.00013698,2]
[329938730,1718848254217,-502.75564157,0.00013698,2]
[329938731,1718848254226,-2423.26,0.00013698,2]
[329938732,1718848254236,-1692.91,0.00013698,2]
[329938733,1718848254245,-500.0,0.00013698,2]
[329938734,1718848254254,-504.99417415,0.00013698,2]
[329938735,1718848254264,-476.17735443,0.00013698,2]
[329938736,1718848254272,-506.53045182,0.00013698,2]
[329938737,1718848254281,-502.80388093,0.00013698,2]
[329938738,1718848254292,-4030.83,0.00013698,2]
[329938739,1718848254301,-2469.73,0.00013698,2]
[329938740,1718848254312,-503.0192113,0.00013698,2]
[329938741,1718848254322,-1248.55,0.00013698,2]
[329938742,1718848254331,-506.54920238,0.00013698,2]
[329938743,1718848254340,-4919.59,0.00013698,2]
[329938744,1718848254349,-500.0,0.00013698,2]
[329938745,1718848254358,-501.25107949,0.00013698,2]
[329938746,1718848254367,-500.0,0.00013698,2]
[329938747,1718848254376,-504.03749625,0.00013698,2]
[329938748,1718848254386,-504.76466418,0.00013698,2]
[329938749,1718848254395,-739.86,0.00013698,2]
[329938750,1718848254405,-620.85,0.00013698,2]
[329938751,1718848254415,-4230.7,0.00013698,2]
[329938752,1718848254424,-502.47435246,0.00013698,2]
[329938753,1718848254433,-508.44811749,0.00013698,2]
[329938754,1718848254442,-500.53901851,0.00013698,2]
[329938755,1718848254451,-6316.12,0.00013698,2]